bitfinex/quotes_SOLUSD_20250601
["timestamp","ask_amount","ask_price","bid_price","bid_amount"]
[1748793946536,6.47043337,154.55,154.5,20.17885822]
[1748793946849,1.5879,154.61,154.54,20.17885822]
[1748793947050,1.5879,154.61,154.52,10.3]
[1748793947347,20.17885822,154.58,154.52,10.3]
[1748793947643,20.17885822,154.58,154.5,32.47246337]
[1748793947827,20.17885822,154.56,154.5,6.47246337]
[1748793948031,20.17885822,154.54,154.49,20.17885822]
[1748793948252,20.17885822,154.52,154.45,6.47458724]
[1748793948454,20.17885822,154.51,154.47,20.17885822]
[1748793948754,20.17885822,154.51,154.45,6.47458724]
[1748793948925,20.17885822,154.49,154.45,6.47458724]
[1748793949124,20.17885822,154.5,154.45,26.65344546]
[1748793949325,20.17885822,154.5,154.45,20.17885822]
[1748793949532,1.6457,154.52,154.44,20.17885822]
[1748793949533,20.17885822,154.48,154.44,20.17885822]
[1748793949946,20.17885822,154.48,154.43,20.17885822]
[1748793950329,20.17885822,154.46,154.41,26.65499856]
[1748793950541,20.17885822,154.47,154.42,20.17885822]
[1748793950747,26.6526997,154.47,154.42,20.17885822]
[1748793950923,26.6526997,154.47,154.42,26.65468573]
[1748793951125,26.6526997,154.47,154.42,20.17885822]
[1748793952037,20.17885822,154.43,154.37,6.4779426]
[1748793952232,20.17885822,154.43,154.39,20.17885822]
[1748793952522,20.17885822,154.45,154.37,6.4779426]
[1748793952728,20.17885822,154.42,154.37,20.17885822]
[1748793952946,20.17885822,154.4,154.35,20.17885822]
[1748793953148,20.17885822,154.39,154.33,6.47962159]
[1748793953337,20.17885822,154.38,154.34,20.17885822]
[1748793954244,26.65609503,154.39,154.33,6.47962159]
[1748793954550,26.65609503,154.39,154.34,20.17885822]
[1748793954754,26.65609503,154.39,154.33,6.47962159]
[1748793955054,26.65559638,154.4,154.35,20.17885822]
[1748793955249,36.68462836,154.4,154.35,30.2078902]
[1748793955446,10.68,154.41,154.37,30.2078902]
[1748793955648,10.68,154.41,154.39,30.2078902]
[1748793955851,10.68,154.41,154.4,30.2078902]
[1748793956241,10.68,154.45,154.4,36.68425733]
[1748793956438,10.68,154.45,154.43,30.2078902]
[1748793956843,10.68,154.45,154.42,30.2078902]
[1748793957045,10.68,154.45,154.43,30.2078902]
[1748793957450,10.68,154.45,154.42,30.2078902]
[1748793958152,10.68,154.45,154.43,30.2078902]
[1748793958533,47.36249713,154.45,154.41,30.2078902]
[1748793958736,40.8878902,154.45,154.41,30.2078902]
[1748793958936,10.68,154.45,154.42,30.2078902]
[1748793959657,10.68,154.45,154.44,30.2078902]
[1748793960357,10.68,154.45,154.43,30.2078902]
[1748793961864,10.68,154.45,154.42,30.2078902]
[1748793962450,10.68,154.45,154.42,36.68371876]
[1748793962655,10.68,154.45,154.44,30.2078902]
[1748793962972,10.68,154.49,154.42,6.47582856]
[1748793963142,30.2078902,154.47,154.43,30.2078902]
[1748793963570,30.2078902,154.47,154.41,6.47616341]
[1748793963754,30.2078902,154.47,154.43,30.2078902]
[1748793963947,30.2078902,154.48,154.44,30.2078902]
[1748793964261,6.47332988,154.48,154.44,30.2078902]
[1748793964474,47.36090323,154.49,154.44,30.2078902]
[1748793964697,10.68,154.49,154.46,30.2078902]
[1748793965365,10.68,154.49,154.47,30.2078902]
[1748793965756,10.68,154.49,154.48,30.2078902]
[1748793966172,6.47173817,154.52,154.48,30.2078902]
[1748793966464,129.88,154.53,154.49,30.2078902]
[1748793966851,129.88,154.53,154.5,30.2078902]
[1748793967463,103.88,154.53,154.51,30.2078902]
[1748793967644,10.68,154.53,154.51,30.2078902]
[1748793969068,10.68,154.53,154.46,6.47416806]
[1748793969267,40.8878902,154.53,154.49,30.2078902]
[1748793969666,40.8878902,154.53,154.48,30.2078902]
[1748793969859,10.68,154.53,154.49,30.2078902]
[1748793970180,17.15131876,154.53,154.49,30.2078902]
[1748793970479,47.35920896,154.53,154.48,30.2078902]
[1748793970977,10.68,154.53,154.49,30.2078902]
[1748793971159,10.68,154.53,154.5,30.2078902]
[1748793972282,10.68,154.53,154.51,30.2078902]
[1748793972673,10.68,154.53,154.5,30.2078902]
[1748793972874,40.8878902,154.53,154.48,30.2078902]
[1748793973579,40.8878902,154.53,154.47,30.2078902]
[1748793973879,30.2078902,154.52,154.47,30.2078902]
[1748793974179,30.2078902,154.51,154.46,36.68198335]
[1748793974476,17.15129779,154.53,154.46,36.68198335]
[1748793974680,30.2078902,154.52,154.47,30.2078902]
[1748793975055,36.67964978,154.52,154.47,30.2078902]
[1748793975455,6.47175958,154.52,154.47,36.6816345]
[1748793975671,30.2078902,154.51,154.47,36.6816345]
[1748793975880,30.2078902,154.51,154.47,30.2078902]
[1748793976296,17.15133519,154.53,154.47,36.68152634]
[1748793976459,40.8878902,154.53,154.48,30.2078902]
[1748793976789,30.2078902,154.52,154.48,30.2078902]
[1748793977000,30.2078902,154.52,154.47,36.68152634]
[1748793977166,36.67958083,154.52,154.47,30.2078902]
[1748793977677,30.2078902,154.51,154.46,30.2078902]
[1748793978569,36.6799768,154.51,154.47,30.2078902]
[1748793980093,36.68008904,154.51,154.47,30.2078902]
[1748793980274,18.64964886,154.54,154.47,30.2078902]
[1748793980589,30.2078902,154.52,154.47,30.2078902]
[1748793981161,30.2078902,154.51,154.45,6.47443797]
[1748793981359,30.2078902,154.51,154.47,30.2078902]
[1748793981584,30.2078902,154.51,154.41,20.15634886]
[1748793981585,30.2078902,154.49,154.41,1.5067]
[1748793981784,30.2078902,154.48,154.43,30.2078902]
[1748793983296,36.68137758,154.48,154.44,30.2078902]
[1748793985994,30.2078902,154.49,154.44,30.2078902]
[1748793987395,20.11456558,154.49,154.44,20.11456558]
[1748793988691,26.58788505,154.49,154.44,20.11456558]
[1748793988893,26.58788505,154.49,154.45,20.11456558]
[1748793989200,6.47331947,154.49,154.45,20.11456558]
[1748793989879,6.47331947,154.49,154.42,6.47584509]
[1748793990195,10.62,154.51,154.48,20.11456558]
[1748793991374,10.62,154.51,154.49,20.11456558]
[1748793992097,10.62,154.51,154.48,20.11456558]
[1748793992292,10.62,154.51,154.49,20.11456558]
[1748793992498,32.47134382,154.53,154.49,20.11456558]
[1748793993896,52.5859094,154.53,154.49,20.11456558]
[1748793994517,52.5859094,154.53,154.48,20.11456558]
[1748793994518,20.11456558,154.52,154.48,20.11456558]
[1748793994678,20.11456558,154.5,154.46,20.11456558]
[1748793995208,20.11456558,154.51,154.46,20.11456558]
[1748793995581,20.11456558,154.51,154.47,20.11456558]
[1748793996100,20.11456558,154.52,154.47,20.11456558]
[1748793996270,52.5859094,154.53,154.48,20.11456558]
[1748793997304,26.70918022,154.55,154.51,20.11456558]
[1748793997801,20.11456558,154.54,154.49,0.5]
[1748793998004,20.11456558,154.54,154.5,20.11456558]
[1748793998501,20.11456558,154.54,154.49,20.11456558]
[1748793998893,26.70918022,154.55,154.5,20.11456558]
[1748793999416,26.70918022,154.55,154.49,6.47289082]
[1748793999417,18.73828598,154.55,154.52,20.11456558]
[1748793999587,8.11828598,154.55,154.53,20.11456558]
[1748793999994,8.11828598,154.55,154.52,20.11456558]
[1748794000582,8.11828598,154.55,154.53,20.11456558]
[1748794001619,8.11828598,154.55,154.52,20.11456558]
[1748794002224,14.58882867,154.55,154.52,20.11456558]
[1748794002903,8.11828598,154.55,154.52,20.11456558]
[1748794003394,8.11828598,154.55,154.47,1.5411]
[1748794003395,34.70326307,154.55,154.51,20.11456558]
[1748794003596,14.58869749,154.55,154.5,20.11456558]
[1748794003808,14.58869749,154.55,154.51,20.11456558]
[1748794003809,28.23285156,154.55,154.51,20.11456558]
[1748794003989,8.11828598,154.55,154.5,6.47232486]
[1748794004303,8.11828598,154.55,154.52,20.11456558]
[1748794004603,14.58873245,154.55,154.51,20.11456558]
[1748794004906,34.70329803,154.55,154.5,20.11456558]
[1748794005698,34.70329803,154.55,154.51,20.11456558]
[1748794006706,20.11456558,154.52,154.46,12.5504267]
[1748794006886,20.11456558,154.5,154.43,7.98491053]
[1748794007094,20.11456558,154.49,154.44,20.11456558]
[1748794007622,20.11456558,154.46,154.4,79.5]
[1748794007921,20.11456558,154.45,154.4,20.11456558]
[1748794008423,20.11456558,154.45,154.41,20.11456558]
[1748794008781,20.11456558,154.45,154.41,20.61456558]
[1748794009120,26.58928318,154.45,154.41,20.61456558]
[1748794009411,26.58885486,154.46,154.41,20.61456558]
[1748794009602,26.58885486,154.46,154.41,27.09065353]
[1748794009917,20.11456558,154.46,154.42,20.11456558]
[1748794010112,26.58886923,154.46,154.42,20.11456558]
[1748794011290,26.58886923,154.46,154.41,20.11456558]
[1748794011905,20.11456558,154.42,154.35,1.6074]
[1748794012223,20.11456558,154.41,154.35,6.47876226]
[1748794012378,20.11456558,154.4,154.35,20.11456558]
[1748794012578,20.11456558,154.4,154.36,20.11456558]
[1748794012778,20.11456558,154.41,154.36,20.11456558]
[1748794013192,6.47668393,154.4,154.36,20.11456558]
[1748794013396,26.59090565,154.41,154.36,20.11456558]
[1748794016410,54.27876106,154.44,154.4,20.11456558]
[1748794016411,12.0909,154.44,154.4,20.11456558]
[1748794016615,6.47462672,154.45,154.41,20.11456558]
[1748794016927,26.5891923,154.45,154.41,20.11456558]
[1748794017694,26.5891923,154.45,154.4,20.11456558]
[1748794017921,6.4742855,154.46,154.42,20.11456558]
[1748794018224,12.2055,154.48,154.44,20.11456558]
[1748794018429,10.54,154.48,154.46,20.11456558]
[1748794018611,26.58717207,154.5,154.46,20.11456558]
[1748794018811,20.11456558,154.49,154.44,20.11456558]
[1748794019219,6.47416806,154.46,154.4,12.50762615]
[1748794019425,6.47416806,154.46,154.43,20.11456558]
[1748794020517,20.11456558,154.48,154.44,20.11456558]
[1748794020720,20.11456558,154.5,154.46,20.11456558]
[1748794021301,20.11456558,154.5,154.46,30.16558664]
[1748794021302,36.63816584,154.5,154.46,30.16558664]
[1748794021601,36.63816584,154.5,154.45,30.16558664]
[1748794021602,30.16558664,154.49,154.45,30.16558664]
[1748794022019,36.63816584,154.5,154.45,30.16558664]
[1748794022230,6.4725792,154.5,154.47,30.16558664]
[1748794022424,26.0,154.51,154.48,30.16558664]
[1748794022425,32.47217328,154.51,154.48,30.16558664]
[1748794022708,62.63775992,154.51,154.47,30.16558664]
[1748794023024,30.16558664,154.5,154.45,30.16558664]
[1748794023530,30.16558664,154.5,154.46,30.16558664]
[1748794023735,30.16558664,154.49,154.45,30.16558664]
[1748794024230,30.16558664,154.46,154.41,30.16558664]
[1748794024431,30.16558664,154.45,154.41,30.16558664]
[1748794024813,30.16558664,154.45,154.4,30.16558664]
[1748794025214,36.64059311,154.44,154.39,30.16558664]
[1748794026129,36.64059311,154.44,154.38,10.54]
[1748794026130,36.64022882,154.45,154.41,30.16558664]
[1748794026432,36.63982071,154.46,154.42,30.16558664]
[1748794026836,30.16558664,154.45,154.41,30.16558664]
[1748794027320,30.16558664,154.46,154.41,30.16558664]
[1748794028014,36.63990858,154.46,154.41,30.16558664]
[1748794028220,30.16558664,154.45,154.41,30.16558664]
[1748794029721,30.16558664,154.43,154.38,10.54]
[1748794029925,30.16558664,154.42,154.35,6.47878198]
[1748794030101,30.16558664,154.42,154.37,30.16558664]
[1748794030611,30.16558664,154.39,154.34,10.54]
[1748794030809,30.16558664,154.39,154.35,30.16558664]
[1748794031135,30.16558664,154.39,154.33,32.47952483]
[1748794031136,30.16558664,154.39,154.34,30.16558664]
[1748794031722,36.64310963,154.38,154.34,30.16558664]
[1748794032112,36.54,154.42,154.37,30.16558664]
[1748794032327,36.54,154.42,154.39,30.16558664]
[1748794032518,66.70558664,154.42,154.38,30.16558664]
[1748794032726,30.16558664,154.41,154.37,30.16558664]
[1748794033014,30.16558664,154.41,154.36,30.16558664]
[1748794033712,6.47752299,154.38,154.34,30.16558664]
[1748794034036,30.16558664,154.37,154.31,6.48032161]
[1748794034343,30.16558664,154.36,154.3,17.0207407]
[1748794034529,30.16558664,154.36,154.31,30.16558664]
[1748794034843,30.16558664,154.37,154.32,30.16558664]
[1748794035138,30.16558664,154.35,154.3,30.16558664]
[1748794035315,30.16558664,154.36,154.32,30.16558664]
[1748794035927,6.47853001,154.36,154.32,30.16558664]
[1748794036841,36.64411665,154.36,154.32,30.16558664]
[1748794037243,30.16558664,154.37,154.33,30.16558664]
[1748794037413,57.78018664,154.39,154.35,30.16558664]
[1748794037613,6.4764073,154.41,154.37,30.16558664]
[1748794037821,36.64199394,154.41,154.37,30.16558664]
[1748794038029,36.64199394,154.41,154.36,30.16558664]
[1748794038215,30.16558664,154.4,154.36,30.16558664]
[1748794039228,6.47710343,154.39,154.36,30.16558664]
[1748794040718,6.47682593,154.4,154.36,30.16558664]
[1748794040919,6.47630533,154.41,154.37,30.16558664]
[1748794041141,36.54,154.42,154.39,30.16558664]
[1748794041326,36.54,154.42,154.4,30.16558664]
[1748794041525,36.54,154.42,154.39,30.16558664]
[1748794041736,36.54,154.42,154.38,30.16558664]
[1748794042041,73.18150331,154.42,154.38,30.16558664]
[1748794042939,30.16558664,154.41,154.36,30.16558664]
[1748794043328,43.01591667,154.42,154.37,20.1355535]
[1748794043329,63.15147017,154.42,154.37,20.1355535]
[1748794043655,43.01591667,154.42,154.32,40.1]
[1748794043837,20.1355535,154.37,154.32,20.1355535]
[1748794044022,20.1355535,154.37,154.3,1.5028]
[1748794044220,20.1355535,154.36,154.31,20.1355535]
[1748794044523,6.47878198,154.35,154.31,20.1355535]
[1748794045845,26.0,154.38,154.34,20.1355535]
[1748794046030,26.0,154.38,154.35,20.1355535]
[1748794046222,46.1355535,154.38,154.33,20.1355535]
[1748794046746,20.1355535,154.37,154.32,20.1355535]
[1748794047041,20.1355535,154.36,154.32,20.1355535]
[1748794047532,20.1355535,154.36,154.31,20.1355535]
[1748794048151,6.47878198,154.35,154.31,20.1355535]
[1748794048325,26.61433548,154.35,154.3,20.1355535]
[1748794048523,20.1355535,154.33,154.28,20.1355535]
[1748794048735,20.1355535,154.34,154.29,20.1355535]
[1748794049236,46.93878198,154.35,154.31,20.1355535]
[1748794049546,67.07433548,154.35,154.31,20.1355535]
[1748794049746,67.07433548,154.35,154.3,20.1355535]
[1748794050146,46.93878198,154.35,154.3,20.1355535]
[1748794050450,67.07433548,154.35,154.3,20.1355535]
[1748794050947,46.93878198,154.35,154.31,20.1355535]
[1748794051150,32.1975535,154.37,154.33,20.1355535]
[1748794051349,10.54,154.37,154.34,20.1355535]
[1748794051854,42.60150873,154.41,154.28,32.48172154]
[1748794051855,6.47683599,154.4,154.36,20.1355535]
[1748794052048,48.2408,154.41,154.32,20.1355535]
[1748794052049,7.99835905,154.41,154.38,20.1355535]
[1748794052554,7.99835905,154.41,154.37,20.1355535]
[1748794054153,20.1355535,154.4,154.33,6.47950134]
[1748794054353,33.99835905,154.41,154.35,20.1355535]
[1748794054536,20.1355535,154.39,154.34,20.1355535]
[1748794055050,20.1355535,154.39,154.35,20.1355535]
[1748794055250,30.20977856,154.39,154.34,30.20977856]
[1748794055834,6.47752299,154.38,154.34,30.20977856]
[1748794056036,6.47752299,154.38,154.33,30.20977856]
[1748794056037,36.68730155,154.38,154.33,30.20977856]
[1748794056230,6.47752299,154.38,154.34,30.20977856]
[1748794057836,6.47752299,154.38,154.35,30.20977856]
[1748794058040,6.47752299,154.38,154.34,30.20977856]
[1748794058854,6.47710343,154.39,154.34,30.20977856]
[1748794059061,36.68688199,154.39,154.35,30.20977856]
[1748794059852,36.68688199,154.39,154.34,30.20977856]
[1748794060061,40.52,154.4,154.35,30.20977856]
[1748794060250,40.52,154.4,154.36,30.20977856]
[1748794060443,46.99670207,154.4,154.36,30.20977856]
[1748794060756,46.99670207,154.4,154.37,30.20977856]
[1748794061137,40.52,154.4,154.37,30.20977856]
[1748794061761,46.99669353,154.4,154.37,30.20977856]
[1748794062283,46.99669353,154.4,154.36,30.20977856]
[1748794062760,26.0,154.41,154.38,30.20977856]
[1748794062938,32.47631585,154.41,154.37,30.20977856]
[1748794063144,30.20977856,154.4,154.36,30.20977856]
[1748794063737,30.20977856,154.4,154.34,40.48]
[1748794063937,30.20977856,154.39,154.35,30.20977856]
[1748794064845,30.20977856,154.4,154.35,30.20977856]
[1748794065150,36.68688104,154.4,154.35,36.68848467]
[1748794065341,36.68688104,154.4,154.36,30.20977856]
[1748794065342,6.47710248,154.4,154.36,30.20977856]
[1748794065861,6.47710248,154.4,154.37,30.20977856]
[1748794066163,6.47710248,154.4,154.36,30.20977856]
[1748794066369,36.68688104,154.4,154.36,30.20977856]
[1748794067151,36.68688104,154.4,154.35,30.20977856]
[1748794067352,30.20977856,154.38,154.33,30.20977856]
[1748794068351,6.4779426,154.37,154.31,17.04037935]
[1748794068533,6.4779426,154.37,154.34,30.20977856]
[1748794068737,6.47763217,154.38,154.34,30.20977856]
[1748794068961,66.48,154.41,154.36,30.20977856]
[1748794069160,96.68977856,154.41,154.36,30.20977856]
[1748794069341,30.20977856,154.4,154.36,30.20977856]
[1748794070273,6.47710343,154.39,154.36,30.20977856]
[1748794070638,30.20977856,154.38,154.33,30.20977856]
[1748794071263,30.20977856,154.38,154.32,30.20977856]
[1748794071264,30.20977856,154.37,154.32,30.20977856]
[1748794072073,6.47836227,154.36,154.32,30.20977856]
[1748794075354,30.20977856,154.35,154.28,1.6132]
[1748794075555,30.20977856,154.33,154.27,17.425]
[1748794075759,30.20977856,154.33,154.27,10.76]
[1748794075961,30.20977856,154.32,154.28,30.20977856]
[1748794076564,30.20977856,154.33,154.28,30.20977856]
[1748794076769,36.68973156,154.33,154.29,30.20977856]
[1748794076969,6.47934414,154.34,154.31,30.20977856]
[1748794077298,6.47934414,154.34,154.28,6.48144959]
[1748794077299,6.47934414,154.34,154.28,46.90144959]
[1748794077569,6.47934414,154.34,154.3,20.14892889]
[1748794077960,26.62827303,154.34,154.3,20.14892889]
[1748794078273,20.14892889,154.34,154.3,20.14892889]
[1748794079466,26.6285008,154.34,154.3,20.14892889]
[1748794080558,6.47957191,154.34,154.3,20.14892889]
[1748794081974,20.14892889,154.34,154.3,20.14892889]
[1748794082846,6.47962159,154.33,154.3,20.14892889]
[1748794083248,26.62828101,154.34,154.3,20.14892889]
[1748794083475,26.62787433,154.35,154.3,20.14892889]
[1748794083774,26.62787433,154.35,154.31,20.14892889]
[1748794084175,20.14892889,154.35,154.31,20.14892889]
[1748794084480,26.62689934,154.37,154.33,20.14892889]
[1748794085472,178.30964886,154.4,154.36,20.14892889]
[1748794085473,17.23683312,154.4,154.36,20.14892889]
[1748794085666,17.23683312,154.4,154.37,20.14892889]
[1748794085870,6.47683312,154.4,154.37,20.14892889]
[1748794086480,7.7727,154.43,154.39,20.14892889]
[1748794086659,10.36107793,154.44,154.42,20.14892889]
[1748794086850,10.09428987,154.48,154.43,20.14892889]
[1748794087047,6.46997929,154.56,154.48,26.0]
[1748794087249,7.99891688,154.58,154.48,26.0]
[1748794087451,7.99891688,154.58,154.52,20.14892889]
[1748794087652,1.5295,154.58,154.5,6.4724919]
[1748794087852,6.46788694,154.61,154.56,20.14892889]
[1748794088070,6.46788694,154.61,154.51,40.94]
[1748794088278,6.46788694,154.61,154.55,20.14892889]
[1748794088493,32.46788694,154.61,154.55,20.14892889]
[1748794088697,26.61681583,154.61,154.56,20.14892889]
[1748794088899,6.46788694,154.61,154.51,40.94]
[1748794089068,6.46788694,154.61,154.56,20.14892889]
[1748794089266,6.46788694,154.61,154.51,47.41181137]
[1748794089467,7.99709482,154.62,154.58,20.14892889]
[1748794090089,7.99709482,154.62,154.54,26.0]
[1748794090090,28.14602371,154.62,154.54,26.0]
[1748794090493,18.64964886,154.66,154.61,20.14892889]
[1748794090787,0.8063554,154.71,154.63,20.14892889]
[1748794090788,26.61389985,154.68,154.63,20.14892889]
[1748794090990,16.96660742,154.71,154.65,20.14892889]
[1748794090991,6.46454198,154.69,154.65,20.14892889]
[1748794091178,36.55638004,154.69,154.64,30.09183806]
[1748794091573,36.55638004,154.69,154.61,6.46775301]
[1748794091771,6.46454198,154.69,154.61,6.46775301]
[1748794092065,0.8063554,154.71,154.68,30.09183806]
[1748794092282,0.8063554,154.71,154.7,30.09183806]
[1748794092491,0.8063554,154.71,154.68,30.09183806]
[1748794092677,30.89819346,154.71,154.66,30.09183806]
[1748794093069,37.36195195,154.71,154.66,30.09183806]
[1748794093293,30.09183806,154.7,154.66,30.09183806]
[1748794093467,30.09183806,154.69,154.65,30.09183806]
[1748794093674,0.8063554,154.71,154.67,30.09183806]
[1748794093877,0.8063554,154.71,154.69,30.09183806]
[1748794094595,0.8063554,154.71,154.68,30.09183806]
[1748794094799,7.2701027,154.71,154.67,30.09183806]
[1748794094986,7.2701027,154.71,154.63,47.54697783]
[1748794095188,30.09183806,154.7,154.66,30.09183806]
[1748794095513,7.2701027,154.71,154.68,30.09183806]
[1748794096002,30.09183806,154.7,154.62,26.0]
[1748794096211,30.09183806,154.69,154.65,30.09183806]
[1748794096797,30.09183806,154.69,154.65,7.64457405]
[1748794097018,36.55707027,154.68,154.62,26.0]
[1748794097318,36.55707027,154.68,154.6,47.56807049]
[1748794097319,30.09183806,154.67,154.6,32.46807049]
[1748794097512,6.46523221,154.68,154.64,30.09183806]
[1748794097805,6.46523221,154.68,154.65,30.09183806]
[1748794098398,30.09183806,154.69,154.65,30.09183806]
[1748794098598,30.09183806,154.68,154.64,30.09183806]
[1748794099291,30.09183806,154.69,154.64,30.09183806]
[1748794099495,36.55691688,154.68,154.64,30.09183806]
[1748794099710,30.09183806,154.67,154.6,26.0]
[1748794099909,30.09183806,154.65,154.6,30.09183806]
[1748794100101,30.09183806,154.65,154.61,30.09183806]
[1748794100284,30.09183806,154.66,154.62,30.09183806]
[1748794100684,30.09183806,154.65,154.61,30.09183806]
[1748794101904,10.74,154.69,154.62,30.09183806]
[1748794102202,30.09183806,154.67,154.63,30.09183806]
[1748794102396,40.83183806,154.69,154.65,30.09183806]
[1748794102597,26.8063554,154.71,154.67,30.09183806]
[1748794102598,7.27012492,154.71,154.67,30.09183806]
[1748794103005,26.0,154.7,154.66,30.09183806]
[1748794103584,37.36196298,154.71,154.66,30.09183806]
[1748794104003,37.36196298,154.71,154.67,30.09183806]
[1748794105494,7.27012492,154.71,154.68,30.09183806]
[1748794106811,7.27012492,154.71,154.67,30.09183806]
[1748794107012,37.36196298,154.71,154.67,30.09183806]
[1748794107202,7.27012492,154.71,154.67,30.09183806]
[1748794107893,7.27012492,154.71,154.66,30.09183806]
[1748794107894,37.36196298,154.71,154.66,30.09183806]
[1748794108812,37.36196298,154.71,154.67,30.09183806]
[1748794110422,37.36196298,154.71,154.66,30.09183806]
[1748794110808,30.09183806,154.7,154.65,30.09183806]
[1748794110993,30.09183806,154.66,154.59,6.4686069]
[1748794111319,30.09183806,154.66,154.62,30.09183806]
[1748794111913,30.09183806,154.65,154.58,17.2090871]
[1748794112096,30.09183806,154.64,154.59,30.09183806]
[1748794112295,26.0,154.67,154.59,30.09183806]
[1748794112296,30.09183806,154.63,154.59,30.09183806]
[1748794113406,30.09183806,154.64,154.6,30.09183806]
[1748794114102,36.55805209,154.65,154.61,30.09183806]
[1748794114300,36.55772437,154.66,154.61,30.09183806]
[1748794114500,36.55772437,154.66,154.62,30.09183806]
[1748794115205,36.55772437,154.66,154.61,30.09183806]
[1748794115795,6.46588631,154.66,154.61,30.09183806]
[1748794116002,36.55772437,154.66,154.61,30.09183806]
[1748794116222,62.55726222,154.67,154.62,30.09183806]
[1748794116429,36.55691255,154.68,154.63,30.09183806]
[1748794116719,34.02791484,154.69,154.64,30.09183806]
[1748794116915,34.02791484,154.69,154.6,6.46826288]
[1748794116916,11.1,154.7,154.66,30.09183806]
[1748794117120,17.5642428,154.7,154.66,30.09183806]
[1748794117296,47.65608086,154.7,154.66,30.09183806]
[1748794117497,17.5642428,154.7,154.66,30.09183806]
[1748794117722,47.65608086,154.7,154.66,30.09183806]
[1748794119101,30.09183806,154.69,154.61,40.82]
[1748794119298,30.09183806,154.67,154.62,30.09183806]
[1748794119496,30.09183806,154.65,154.61,30.09183806]
[1748794119725,30.09183806,154.66,154.61,30.09183806]
[1748794119921,30.09183806,154.67,154.63,30.09183806]
[1748794120121,30.09183806,154.68,154.63,30.09183806]
[1748794120629,17.56418751,154.7,154.66,30.09183806]
[1748794120847,47.65602557,154.7,154.66,30.09183806]
[1748794121326,47.65602557,154.7,154.65,30.09183806]
[1748794121832,11.1,154.7,154.66,30.09183806]
[1748794122034,41.19183806,154.7,154.66,30.09183806]
[1748794122836,30.09183806,154.7,154.66,30.09183806]
[1748794123213,36.55620927,154.7,154.61,6.46788694]
[1748794123411,30.09183806,154.66,154.62,30.09183806]
[1748794123738,30.09183806,154.67,154.62,36.55909926]
[1748794123946,30.09183806,154.67,154.63,30.09183806]
[1748794125232,6.46502302,154.68,154.62,30.09183806]
[1748794125233,30.09183806,154.66,154.62,30.09183806]
[1748794125431,30.09183806,154.65,154.61,30.09183806]
[1748794126139,30.09183806,154.66,154.62,30.09183806]
[1748794126325,6.46548883,154.67,154.61,6.46782467]
[1748794126326,30.09183806,154.67,154.63,30.09183806]
[1748794127234,30.09183806,154.67,154.62,30.09183806]
[1748794127617,36.55731937,154.67,154.62,30.09183806]
[1748794128345,30.09183806,154.67,154.62,30.09183806]
[1748794128723,36.55732478,154.67,154.62,30.09183806]
[1748794128917,6.46548672,154.67,154.62,30.09183806]
[1748794129250,30.09183806,154.66,154.62,30.09183806]
[1748794129428,36.55795571,154.66,154.61,30.09183806]
[1748794129825,36.55795571,154.66,154.61,36.55972084]
[1748794130028,30.09183806,154.66,154.62,30.09183806]
[1748794130534,36.55764197,154.66,154.61,30.09183806]
[1748794130741,36.55764197,154.66,154.6,17.56817354]
[1748794130742,30.09183806,154.65,154.6,41.19183806]
[1748794131128,30.09183806,154.65,154.6,30.09183806]
[1748794131948,30.09183806,154.62,154.57,6.46916893]
[1748794132121,30.09183806,154.61,154.57,36.56100699]
[1748794132517,30.09183806,154.61,154.56,47.44169235]
[1748794132942,30.09183806,154.61,154.56,40.97183806]
[1748794133250,30.09183806,154.61,154.56,47.44177353]
[1748794133421,30.09183806,154.62,154.58,30.09183806]
[1748794133830,30.09183806,154.61,154.57,30.09183806]
[1748794134036,30.09183806,154.61,154.56,30.09183806]
[1748794134231,30.09183806,154.61,154.55,6.47025642]
[1748794134448,30.09183806,154.6,154.55,30.09183806]
[1748794134652,30.09183806,154.59,154.54,37.14469474]
[1748794135025,30.09183806,154.59,154.54,7.05285668]
[1748794135226,30.09183806,154.59,154.54,37.14469474]
[1748794135420,30.09183806,154.57,154.54,0.5821821]
[1748794135634,30.09183806,154.58,154.54,0.5821821]
[1748794135844,36.56095416,154.59,154.54,30.67402016]
[1748794136242,53.04867158,154.62,154.54,30.67402016]
[1748794136243,36.88,154.62,154.55,30.09183806]
[1748794136550,30.09183806,154.61,154.56,30.09183806]
[1748794136932,30.09183806,154.61,154.57,30.09183806]
[1748794137128,37.42571829,154.62,154.54,7.05297154]
[1748794137459,37.42571829,154.62,154.58,20.07810601]
[1748794137639,37.42571829,154.62,154.57,20.07810601]
[1748794137838,203.73463469,154.69,154.57,20.07810601]
[1748794137839,0.8063554,154.71,154.61,38.72775487]
[1748794138147,20.07810601,154.69,154.64,20.07810601]
[1748794138449,20.07810601,154.7,154.65,20.07810601]
[1748794138651,20.07810601,154.69,154.63,20.07810601]
[1748794138952,20.07810601,154.69,154.62,43.96]
[1748794138953,20.07810601,154.69,154.64,20.07810601]
[1748794139448,34.8046983,154.71,154.65,30.0915216]